[Event "Live Chess"]
[Site "Chess.com"]
[Date "2011.01.03"]
[Round "-"]
[White "hipposcottimus"]
[Black "makavangelo"]
[Result "1-0"]
[CurrentPosition "8/1p3kp1/1Q6/4P3/P2PK2p/8/2r3PP/8 b - -"]
[Timezone "UTC"]
[ECO "C41"]
[ECOUrl "https://www.chess.com/openings/Philidor-Defense-3.d4-Bg4"]
[UTCDate "2011.01.03"]
[UTCTime "23:53:00"]
[WhiteElo "1395"]
[BlackElo "1305"]
[TimeControl "480"]
[Termination "hipposcottimus won on time"]
[StartTime "23:53:00"]
[EndDate "2011.01.04"]
[EndTime "00:08:28"]
[Link "https://www.chess.com/game/live/83954503"]

1. e4 {[%clk 0:08:00]} 1... e5 {[%clk 0:08:00]} 2. Nf3 {[%clk 0:07:55.7]} 2... d6 {[%clk 0:07:57.6]} 3. d4 {[%clk 0:07:52]} 3... Bg4 {[%clk 0:07:54.5]} 4. Qd3 {[%clk 0:07:50.3]} 4... Nf6 {[%clk 0:07:37.2]} 5. dxe5 {[%clk 0:07:46.1]} 5... Nfd7 {[%clk 0:07:20.2]} 6. Bg5 {[%clk 0:07:31.4]} 6... Be7 {[%clk 0:07:12.3]} 7. Bxe7 {[%clk 0:07:26.2]} 7... Qxe7 {[%clk 0:07:07.6]} 8. exd6 {[%clk 0:07:23]} 8... cxd6 {[%clk 0:07:03.5]} 9. Nd4 {[%clk 0:07:14.6]} 9... O-O {[%clk 0:06:51.9]} 10. Nb5 {[%clk 0:07:09.6]} 10... Nc5 {[%clk 0:06:41.7]} 11. Qe3 {[%clk 0:06:17.5]} 11... a6 {[%clk 0:06:20.1]} 12. N5c3 {[%clk 0:05:13.3]} 12... Nc6 {[%clk 0:06:14.1]} 13. f3 {[%clk 0:05:03.9]} 13... Nb4 {[%clk 0:06:04.9]} 14. Na3 {[%clk 0:04:56.6]} 14... Bd7 {[%clk 0:05:49.4]} 15. Bd3 {[%clk 0:04:43.5]} 15... Bb5 {[%clk 0:05:42.7]} 16. O-O {[%clk 0:04:35.6]} 16... Bxd3 {[%clk 0:05:40.4]} 17. cxd3 {[%clk 0:04:33.5]} 17... a5 {[%clk 0:05:11.8]} 18. d4 {[%clk 0:04:25.9]} 18... Ncd3 {[%clk 0:05:04.6]} 19. Rad1 {[%clk 0:03:29.3]} 19... Nxb2 {[%clk 0:04:57.8]} 20. Rd2 {[%clk 0:03:15.9]} 20... N4d3 {[%clk 0:04:23.1]} 21. Rxd3 {[%clk 0:03:12.9]} 21... Nxd3 {[%clk 0:04:19.9]} 22. Qxd3 {[%clk 0:03:11.2]} 22... d5 {[%clk 0:04:12.5]} 23. Nxd5 {[%clk 0:03:09.1]} 23... Qg5 {[%clk 0:03:57.6]} 24. f4 {[%clk 0:02:51.7]} 24... Qd8 {[%clk 0:03:38.8]} 25. Nb5 {[%clk 0:02:39.4]} 25... Rc8 {[%clk 0:02:56.5]} 26. a4 {[%clk 0:02:15.3]} 26... h5 {[%clk 0:02:25.7]} 27. f5 {[%clk 0:02:04.3]} 27... Qg5 {[%clk 0:01:58.1]} 28. f6 {[%clk 0:01:58.7]} 28... Rfe8 {[%clk 0:01:26.8]} 29. Ne7+ {[%clk 0:01:45.4]} 29... Rxe7 {[%clk 0:01:22.4]} 30. fxe7 {[%clk 0:01:43.6]} 30... Qxe7 {[%clk 0:01:19.8]} 31. e5 {[%clk 0:01:37.5]} 31... h4 {[%clk 0:01:09.7]} 32. Nd6 {[%clk 0:01:34.8]} 32... Rc6 {[%clk 0:00:47.7]} 33. Nxf7 {[%clk 0:01:17.7]} 33... Qxf7 {[%clk 0:00:39.9]} 34. Rxf7 {[%clk 0:01:14.5]} 34... Kxf7 {[%clk 0:00:37.6]} 35. Qb5 {[%clk 0:01:06.1]} 35... Rc1+ {[%clk 0:00:30.2]} 36. Kf2 {[%clk 0:01:02.4]} 36... Rc2+ {[%clk 0:00:27.2]} 37. Kf3 {[%clk 0:01:00.1]} 37... Rc3+ {[%clk 0:00:21.8]} 38. Ke4 {[%clk 0:00:58]} 38... Rc7 {[%clk 0:00:07.9]} 39. Qxa5 {[%clk 0:00:55.8]} 39... Rc2 {[%clk 0:00:02.5]} 40. Qb6 {[%clk 0:00:49.4]} 1-0

[Event "Live Chess"]
[Site "Chess.com"]
[Date "2011.01.03"]
[Round "-"]
[White "hipposcottimus"]
[Black "barakat47"]
[Result "1-0"]
[CurrentPosition "2Q4k/8/7p/6p1/8/6P1/P4PKP/8 b - -"]
[Timezone "UTC"]
[ECO "B01"]
[ECOUrl "https://www.chess.com/openings/Scandinavian-Defense-Mieses-Kotrc-Variation-3.Nc3"]
[UTCDate "2011.01.03"]
[UTCTime "23:33:52"]
[WhiteElo "1389"]
[BlackElo "1249"]
[TimeControl "600"]
[Termination "hipposcottimus won by resignation"]
[StartTime "23:33:52"]
[EndDate "2011.01.03"]
[EndTime "23:51:54"]
[Link "https://www.chess.com/game/live/83949612"]

1. e4 {[%clk 0:10:00]} 1... d5 {[%clk 0:10:00]} 2. exd5 {[%clk 0:09:56.8]} 2... Qxd5 {[%clk 0:09:58.3]} 3. Nc3 {[%clk 0:09:55.6]} 3... Qe6+ {[%clk 0:09:56.5]} 4. Be2 {[%clk 0:09:52.8]} 4... Nc6 {[%clk 0:09:52.5]} 5. d4 {[%clk 0:09:47.2]} 5... Qg6 {[%clk 0:09:35.6]} 6. Bf3 {[%clk 0:09:37]} 6... e6 {[%clk 0:09:21.5]} 7. Nge2 {[%clk 0:09:32.4]} 7... Bb4 {[%clk 0:09:10.6]} 8. Be4 {[%clk 0:09:24.8]} 8... Qg4 {[%clk 0:08:51.1]} 9. Bf3 {[%clk 0:09:02.4]} 9... Qh4 {[%clk 0:08:42.1]} 10. Bf4 {[%clk 0:08:37.8]} 10... Bxc3+ {[%clk 0:08:28.4]} 11. bxc3 {[%clk 0:08:33.5]} 11... Qd8 {[%clk 0:08:20.9]} 12. O-O {[%clk 0:08:29.2]} 12... Nf6 {[%clk 0:08:16.8]} 13. Bg5 {[%clk 0:08:25.3]} 13... O-O {[%clk 0:08:14.5]} 14. Ng3 {[%clk 0:07:50.7]} 14... h6 {[%clk 0:08:07.3]} 15. Bxf6 {[%clk 0:07:41.6]} 15... Qxf6 {[%clk 0:08:04.3]} 16. Ne4 {[%clk 0:07:26.1]} 16... Qe7 {[%clk 0:07:54.7]} 17. Nc5 {[%clk 0:07:10.5]} 17... Na5 {[%clk 0:07:39.8]} 18. Re1 {[%clk 0:06:49.4]} 18... c6 {[%clk 0:07:36.3]} 19. Nb3 {[%clk 0:06:40.3]} 19... Nc4 {[%clk 0:07:32.1]} 20. Nc5 {[%clk 0:06:30.6]} 20... Nb2 {[%clk 0:06:55.6]} 21. Qe2 {[%clk 0:06:07.3]} 21... Qg5 {[%clk 0:06:25.8]} 22. Rab1 {[%clk 0:06:00.7]} 22... Na4 {[%clk 0:06:19.7]} 23. Nxa4 {[%clk 0:05:57.5]} 23... e5 {[%clk 0:06:12.8]} 24. Nc5 {[%clk 0:05:51.1]} 24... Bh3 {[%clk 0:06:06]} 25. Nd7 {[%clk 0:05:34.1]} 25... Bxd7 {[%clk 0:05:43]} 26. Rbd1 {[%clk 0:05:21.3]} 26... Bh3 {[%clk 0:05:40.4]} 27. Kh1 {[%clk 0:05:14]} 27... Be6 {[%clk 0:05:25.7]} 28. c4 {[%clk 0:04:53.1]} 28... exd4 {[%clk 0:05:14.1]} 29. Rxd4 {[%clk 0:04:48.8]} 29... Rae8 {[%clk 0:05:09.3]} 30. Re4 {[%clk 0:04:44.1]} 30... Qc5 {[%clk 0:04:48.8]} 31. c3 {[%clk 0:03:24.1]} 31... Qa3 {[%clk 0:04:29.9]} 32. Bg4 {[%clk 0:03:18.5]} 32... Qxc3 {[%clk 0:04:23.1]} 33. Bxe6 {[%clk 0:03:12.5]} 33... fxe6 {[%clk 0:04:21.6]} 34. Rxe6 {[%clk 0:03:10.5]} 34... Rxe6 {[%clk 0:04:17.4]} 35. Qxe6+ {[%clk 0:03:10.2]} 35... Rf7 {[%clk 0:04:05]} 36. g3 {[%clk 0:02:36.4]} 36... Qc2 {[%clk 0:03:50.5]} 37. Re2 {[%clk 0:02:25.2]} 37... Qd1+ {[%clk 0:03:43.7]} 38. Kg2 {[%clk 0:02:21.6]} 38... Qd8 {[%clk 0:03:05.2]} 39. Rb2 {[%clk 0:02:11.5]} 39... Qf8 {[%clk 0:02:41]} 40. Rxb7 {[%clk 0:02:06]} 40... a5 {[%clk 0:02:31.2]} 41. Rc7 {[%clk 0:02:01.3]} 41... a4 {[%clk 0:02:21.5]} 42. Rc8 {[%clk 0:01:59.4]} 42... Qxc8 {[%clk 0:02:07.1]} 43. Qxc8+ {[%clk 0:01:56.7]} 43... Rf8 {[%clk 0:02:02.2]} 44. Qe6+ {[%clk 0:01:53.2]} 44... Kh8 {[%clk 0:01:58]} 45. Qxc6 {[%clk 0:01:50.9]} 45... Rf6 {[%clk 0:01:43.7]} 46. Qxa4 {[%clk 0:01:42.3]} 46... Rd6 {[%clk 0:01:34.6]} 47. c5 {[%clk 0:01:39.1]} 47... Rd2 {[%clk 0:01:30.2]} 48. c6 {[%clk 0:01:36.5]} 48... Rd1 {[%clk 0:01:21.9]} 49. c7 {[%clk 0:01:32.8]} 49... Rc1 {[%clk 0:01:19.1]} 50. Qd7 {[%clk 0:01:24.7]} 50... g5 {[%clk 0:01:13.9]} 51. c8=Q+ {[%clk 0:01:16.7]} 51... Rxc8 {[%clk 0:01:09.7]} 52. Qxc8+ {[%clk 0:01:14.4]} 1-0

[Event "Live Chess"]
[Site "Chess.com"]
[Date "2011.01.03"]
[Round "-"]
[White "barakat47"]
[Black "hipposcottimus"]
[Result "0-1"]
[CurrentPosition "6k1/6pp/8/p1N5/8/1P2P1P1/PBPP3r/3K1r2 w - -"]
[Timezone "UTC"]
[ECO "A00"]
[ECOUrl "https://www.chess.com/openings/Kings-Fianchetto-Opening-1...e5-2.Bg2-d5"]
[UTCDate "2011.01.03"]
[UTCTime "23:21:58"]
[WhiteElo "1254"]
[BlackElo "1384"]
[TimeControl "600"]
[Termination "hipposcottimus won by checkmate"]
[StartTime "23:21:58"]
[EndDate "2011.01.03"]
[EndTime "23:32:26"]
[Link "https://www.chess.com/game/live/83946802"]

1. g3 {[%clk 0:10:00]} 1... e5 {[%clk 0:10:00]} 2. Bg2 {[%clk 0:09:58.8]} 2... d5 {[%clk 0:09:59.1]} 3. Nc3 {[%clk 0:09:54.5]} 3... d4 {[%clk 0:09:55.2]} 4. Nd5 {[%clk 0:09:43.6]} 4... c6 {[%clk 0:09:53.3]} 5. Nb4 {[%clk 0:09:38.4]} 5... a5 {[%clk 0:09:49]} 6. Nd3 {[%clk 0:09:22.1]} 6... f5 {[%clk 0:09:42.6]} 7. Nxe5 {[%clk 0:09:18.5]} 7... Nf6 {[%clk 0:09:40.5]} 8. e3 {[%clk 0:09:07.7]} 8... Bd6 {[%clk 0:09:36.1]} 9. Nc4 {[%clk 0:08:58.2]} 9... dxe3 {[%clk 0:09:30.3]} 10. Nxd6+ {[%clk 0:08:45.4]} 10... Qxd6 {[%clk 0:09:26.7]} 11. fxe3 {[%clk 0:08:42.8]} 11... O-O {[%clk 0:09:19.4]} 12. b3 {[%clk 0:08:33]} 12... Ne4 {[%clk 0:09:17.2]} 13. Bxe4 {[%clk 0:08:21.4]} 13... fxe4 {[%clk 0:09:14.8]} 14. Bb2 {[%clk 0:08:11.2]} 14... Nd7 {[%clk 0:09:05.1]} 15. Qg4 {[%clk 0:07:53.1]} 15... Ne5 {[%clk 0:08:58.1]} 16. Qxe4 {[%clk 0:07:43.5]} 16... Ng4 {[%clk 0:08:18.1]} 17. O-O-O {[%clk 0:07:21.6]} 17... Nf2 {[%clk 0:07:55.8]} 18. Qc4+ {[%clk 0:07:09.4]} 18... Be6 {[%clk 0:07:50.8]} 19. Qd4 {[%clk 0:06:33.8]} 19... Qe7 {[%clk 0:07:23.9]} 20. Ne2 {[%clk 0:06:22.9]} 20... Nxd1 {[%clk 0:07:01.9]} 21. Rxd1 {[%clk 0:06:18.1]} 21... c5 {[%clk 0:06:37.8]} 22. Qe4 {[%clk 0:06:06.7]} 22... b6 {[%clk 0:06:35.2]} 23. Nf4 {[%clk 0:05:58.2]} 23... Rae8 {[%clk 0:06:24.5]} 24. Nd5 {[%clk 0:05:41.7]} 24... Qg5 {[%clk 0:05:57.3]} 25. Nxb6 {[%clk 0:05:16.3]} 25... Bg4 {[%clk 0:05:50.5]} 26. Qd5+ {[%clk 0:05:11.8]} 26... Qxd5 {[%clk 0:05:43.9]} 27. Nxd5 {[%clk 0:05:04.9]} 27... Bxd1 {[%clk 0:05:36.6]} 28. Kxd1 {[%clk 0:05:03.3]} 28... Rf2 {[%clk 0:05:24.9]} 29. Nc7 {[%clk 0:04:52.1]} 29... Ref8 {[%clk 0:05:14.4]} 30. Na6 {[%clk 0:04:45.5]} 30... Rxh2 {[%clk 0:05:10.7]} 31. Nxc5 {[%clk 0:04:42.2]} 31... Rf1# {[%clk 0:05:05.9]} 0-1

[Event "Live Chess"]
[Site "Chess.com"]
[Date "2011.01.03"]
[Round "-"]
[White "ejderkeskin"]
[Black "hipposcottimus"]
[Result "0-1"]
[CurrentPosition "r3r1k1/5ppp/p1p5/8/QP2pNn1/P3P1P1/3B1q2/2R2KR1 w - -"]
[Timezone "UTC"]
[ECO "D00"]
[ECOUrl "https://www.chess.com/openings/Queens-Pawn-Opening-1...d5-2.c3"]
[UTCDate "2011.01.03"]
[UTCTime "15:51:08"]
[WhiteElo "1350"]
[BlackElo "1379"]
[TimeControl "600"]
[Termination "hipposcottimus won by checkmate"]
[StartTime "15:51:08"]
[EndDate "2011.01.03"]
[EndTime "16:01:00"]
[Link "https://www.chess.com/game/live/83820783"]

1. d4 {[%clk 0:10:00]} 1... d5 {[%clk 0:10:00]} 2. c3 {[%clk 0:09:57.3]} 2... c5 {[%clk 0:09:57]} 3. Nf3 {[%clk 0:09:49.3]} 3... Bg4 {[%clk 0:09:54.5]} 4. e3 {[%clk 0:09:43.4]} 4... cxd4 {[%clk 0:09:52]} 5. cxd4 {[%clk 0:09:37.9]} 5... e6 {[%clk 0:09:51.5]} 6. Be2 {[%clk 0:09:32.7]} 6... Nf6 {[%clk 0:09:49]} 7. O-O {[%clk 0:09:16.8]} 7... Bd6 {[%clk 0:09:45.3]} 8. Ne5 {[%clk 0:09:06.2]} 8... Bf5 {[%clk 0:09:34]} 9. Nc3 {[%clk 0:08:49.2]} 9... a6 {[%clk 0:09:23]} 10. Bf3 {[%clk 0:08:18.4]} 10... Nc6 {[%clk 0:09:17]} 11. Nxc6 {[%clk 0:08:11.7]} 11... bxc6 {[%clk 0:09:15.4]} 12. Qa4 {[%clk 0:07:59.7]} 12... Qc7 {[%clk 0:09:12.2]} 13. a3 {[%clk 0:07:33.9]} 13... Bxh2+ {[%clk 0:09:09.7]} 14. Kh1 {[%clk 0:07:26.7]} 14... O-O {[%clk 0:09:09.3]} 15. b4 {[%clk 0:07:04.1]} 15... Be4 {[%clk 0:09:01.4]} 16. Bxe4 {[%clk 0:06:53.5]} 16... dxe4 {[%clk 0:09:00.6]} 17. Ne2 {[%clk 0:06:40.8]} 17... Rfe8 {[%clk 0:08:51.5]} 18. g3 {[%clk 0:06:33.9]} 18... Ng4 {[%clk 0:08:27.2]} 19. Nf4 {[%clk 0:06:16.1]} 19... e5 {[%clk 0:08:21.7]} 20. dxe5 {[%clk 0:06:10.6]} 20... Qxe5 {[%clk 0:08:15.8]} 21. Bd2 {[%clk 0:05:43.6]} 21... Qf6 {[%clk 0:07:55.4]} 22. Rac1 {[%clk 0:05:33.6]} 22... Qh6 {[%clk 0:07:50]} 23. Kg2 {[%clk 0:05:14.7]} 23... Bg1 {[%clk 0:05:38.3]} 24. Rxg1 {[%clk 0:04:50.2]} 24... Qh2+ {[%clk 0:05:35.6]} 25. Kf1 {[%clk 0:04:45.9]} 25... Qxf2# {[%clk 0:05:34.7]} 0-1

[Event "Live Chess"]
[Site "Chess.com"]
[Date "2011.01.03"]
[Round "-"]
[White "hipposcottimus"]
[Black "Mushtaque"]
[Result "1-0"]
[CurrentPosition "r3k3/pbnp1r2/1ppNp1Q1/8/8/2N5/PPP2PPP/R4RK1 b q -"]
[Timezone "UTC"]
[ECO "B00"]
[ECOUrl "https://www.chess.com/openings/Owens-Defense"]
[UTCDate "2011.01.03"]
[UTCTime "15:47:55"]
[WhiteElo "1371"]
[BlackElo "1263"]
[TimeControl "120+12"]
[Termination "hipposcottimus won by resignation"]
[StartTime "15:47:55"]
[EndDate "2011.01.03"]
[EndTime "15:50:26"]
[Link "https://www.chess.com/game/live/83819963"]

1. e4 {[%clk 0:02:00]} 1... b6 {[%clk 0:02:00]} 2. Nf3 {[%clk 0:02:11.6]} 2... Bb7 {[%clk 0:02:10.5]} 3. Nc3 {[%clk 0:02:23.3]} 3... c6 {[%clk 0:02:20.4]} 4. d4 {[%clk 0:02:34.8]} 4... e6 {[%clk 0:02:31]} 5. e5 {[%clk 0:02:46]} 5... Be7 {[%clk 0:02:41.6]} 6. Be2 {[%clk 0:02:57.5]} 6... f6 {[%clk 0:02:52.2]} 7. O-O {[%clk 0:03:09.2]} 7... g6 {[%clk 0:03:02.7]} 8. Be3 {[%clk 0:03:16.2]} 8... Qc7 {[%clk 0:03:13.2]} 9. Bf4 {[%clk 0:03:24.7]} 9... g5 {[%clk 0:03:21.7]} 10. Bg3 {[%clk 0:03:34.9]} 10... g4 {[%clk 0:03:31.6]} 11. Nd2 {[%clk 0:03:42.7]} 11... h5 {[%clk 0:03:39.9]} 12. exf6 {[%clk 0:03:53.3]} 12... Bxf6 {[%clk 0:03:48.7]} 13. Bxc7 {[%clk 0:04:03.6]} 13... Bxd4 {[%clk 0:03:48.3]} 14. Bxg4 {[%clk 0:04:10.5]} 14... hxg4 {[%clk 0:03:57]} 15. Qxg4 {[%clk 0:04:20.6]} 15... Nf6 {[%clk 0:04:02.1]} 16. Qxd4 {[%clk 0:04:27.4]} 16... Na6 {[%clk 0:04:09]} 17. Qxf6 {[%clk 0:04:37.5]} 17... Rf8 {[%clk 0:04:05.3]} 18. Qg6+ {[%clk 0:04:45.3]} 18... Rf7 {[%clk 0:04:15.3]} 19. Nde4 {[%clk 0:04:56.5]} 19... Nxc7 {[%clk 0:04:20.2]} 20. Nd6+ {[%clk 0:05:06.7]} 1-0

[Event "Live Chess"]
[Site "Chess.com"]
[Date "2011.01.03"]
[Round "-"]
[White "hipposcottimus"]
[Black "Aircow"]
[Result "0-1"]
[CurrentPosition "k3r3/p1p3pp/Qp6/1PN5/8/2P2P2/P5PP/3Rr2K w - -"]
[Timezone "UTC"]
[ECO "C50"]
[ECOUrl "https://www.chess.com/openings/Italian-Game-Blackburne-Shilling-Gambit-4.Nxe5-Qg5"]
[UTCDate "2011.01.03"]
[UTCTime "08:18:12"]
[WhiteElo "1365"]
[BlackElo "1365"]
[TimeControl "600"]
[Termination "Aircow won on time"]
[StartTime "08:18:12"]
[EndDate "2011.01.03"]
[EndTime "08:34:40"]
[Link "https://www.chess.com/game/live/83719575"]

1. e4 {[%clk 0:10:00]} 1... e5 {[%clk 0:10:00]} 2. Nf3 {[%clk 0:09:58.9]} 2... Nc6 {[%clk 0:09:56.8]} 3. Bc4 {[%clk 0:09:58.5]} 3... Nd4 {[%clk 0:09:54.4]} 4. Nxe5 {[%clk 0:09:55.9]} 4... Qg5 {[%clk 0:09:53]} 5. Bxf7+ {[%clk 0:09:45.4]} 5... Kd8 {[%clk 0:09:49.7]} 6. O-O {[%clk 0:09:43.2]} 6... Qxe5 {[%clk 0:09:43.8]} 7. c3 {[%clk 0:09:37.7]} 7... Ne6 {[%clk 0:09:33.4]} 8. f3 {[%clk 0:09:23.1]} 8... Nf4 {[%clk 0:09:26.9]} 9. d4 {[%clk 0:09:17]} 9... Qg5 {[%clk 0:09:15.7]} 10. Rf2 {[%clk 0:08:55.5]} 10... Qf6 {[%clk 0:09:02.2]} 11. Bxg8 {[%clk 0:08:25.7]} 11... Rxg8 {[%clk 0:08:53.9]} 12. e5 {[%clk 0:08:14.8]} 12... Qf5 {[%clk 0:08:24.5]} 13. Nd2 {[%clk 0:07:35]} 13... Nd3 {[%clk 0:08:17.4]} 14. Re2 {[%clk 0:07:17.4]} 14... Nxc1 {[%clk 0:07:48.9]} 15. Rxc1 {[%clk 0:07:03.7]} 15... d6 {[%clk 0:07:43.4]} 16. Ne4 {[%clk 0:06:58.3]} 16... dxe5 {[%clk 0:07:33.5]} 17. dxe5+ {[%clk 0:06:55.1]} 17... Bd7 {[%clk 0:07:28.3]} 18. Nc5 {[%clk 0:06:50.8]} 18... b6 {[%clk 0:07:17.6]} 19. Nxd7 {[%clk 0:06:46.9]} 19... Kc8 {[%clk 0:06:53.3]} 20. e6 {[%clk 0:06:36.2]} 20... Bd6 {[%clk 0:06:00.3]} 21. Qa4 {[%clk 0:05:47.6]} 21... Kb7 {[%clk 0:04:42.5]} 22. b4 {[%clk 0:05:28.6]} 22... Rae8 {[%clk 0:04:12.2]} 23. b5 {[%clk 0:04:45.4]} 23... Rxe6 {[%clk 0:03:39.2]} 24. Qa6+ {[%clk 0:04:37]} 24... Ka8 {[%clk 0:03:37.5]} 25. Rd2 {[%clk 0:03:49.7]} 25... Bc5+ {[%clk 0:01:45]} 26. Kh1 {[%clk 0:03:42]} 26... Rge8 {[%clk 0:01:41]} 27. Rdd1 {[%clk 0:03:12.4]} 27... Qc2 {[%clk 0:01:36.9]} 28. Nxc5 {[%clk 0:02:23.1]} 28... Qxd1+ {[%clk 0:01:29.8]} 29. Rxd1 {[%clk 0:02:18.7]} 29... Re1+ {[%clk 0:01:28.6]} 0-1

[Event "Live Chess"]
[Site "Chess.com"]
[Date "2011.01.03"]
[Round "-"]
[White "Mission"]
[Black "hipposcottimus"]
[Result "1-0"]
[CurrentPosition "4k3/4r2p/6p1/8/8/6P1/Q5KP/B7 b - -"]
[Timezone "UTC"]
[ECO "A02"]
[ECOUrl "https://www.chess.com/openings/Birds-Opening-1...d6-2.Nf3"]
[UTCDate "2011.01.03"]
[UTCTime "06:29:31"]
[WhiteElo "1325"]
[BlackElo "1373"]
[TimeControl "120+10"]
[Termination "Mission won by resignation"]
[StartTime "06:29:31"]
[EndDate "2011.01.03"]
[EndTime "06:52:19"]
[Link "https://www.chess.com/game/live/83699570"]

1. f4 {[%clk 0:02:00]} 1... d6 {[%clk 0:02:00]} 2. Nf3 {[%clk 0:02:07.3]} 2... Bg4 {[%clk 0:02:04.1]} 3. e3 {[%clk 0:02:15.7]} 3... e5 {[%clk 0:02:10.7]} 4. fxe5 {[%clk 0:02:19.5]} 4... dxe5 {[%clk 0:02:18.2]} 5. Be2 {[%clk 0:02:23.5]} 5... Nc6 {[%clk 0:02:18.6]} 6. O-O {[%clk 0:02:28.4]} 6... Bd6 {[%clk 0:02:21.4]} 7. e4 {[%clk 0:02:36.9]} 7... Nce7 {[%clk 0:02:14.6]} 8. d3 {[%clk 0:02:44.2]} 8... f5 {[%clk 0:02:22.7]} 9. Ng5 {[%clk 0:02:35.5]} 9... Nf6 {[%clk 0:02:18.9]} 10. exf5 {[%clk 0:02:26.2]} 10... Bxf5 {[%clk 0:02:23.2]} 11. Bh5+ {[%clk 0:02:13.2]} 11... Bg6 {[%clk 0:02:27.6]} 12. Bxg6+ {[%clk 0:02:03.3]} 12... Nxg6 {[%clk 0:02:35.1]} 13. d4 {[%clk 0:01:52]} 13... O-O {[%clk 0:02:35.1]} 14. Re1 {[%clk 0:01:52.5]} 14... exd4 {[%clk 0:02:36.2]} 15. Ne6 {[%clk 0:01:58.9]} 15... Qd7 {[%clk 0:02:08.4]} 16. Nxf8 {[%clk 0:02:03.6]} 16... Rxf8 {[%clk 0:02:18.1]} 17. b3 {[%clk 0:01:55.7]} 17... c5 {[%clk 0:02:25.7]} 18. a4 {[%clk 0:01:58.7]} 18... Bc7 {[%clk 0:02:32.7]} 19. Ba3 {[%clk 0:02:00.7]} 19... Qd6 {[%clk 0:02:40.4]} 20. g3 {[%clk 0:01:44.6]} 20... Ng4 {[%clk 0:02:31.2]} 21. Qxg4 {[%clk 0:01:22.3]} 21... Ne5 {[%clk 0:02:37]} 22. Qe2 {[%clk 0:01:18.6]} 22... Nf3+ {[%clk 0:02:44.5]} 23. Kg2 {[%clk 0:01:04]} 23... Nxe1+ {[%clk 0:02:15.3]} 24. Qxe1 {[%clk 0:01:06.8]} 24... Qd5+ {[%clk 0:02:01.7]} 25. Kg1 {[%clk 0:01:05.5]} 25... d3 {[%clk 0:01:37]} 26. Bc1 {[%clk 0:01:03.7]} 26... dxc2 {[%clk 0:01:39.5]} 27. Nc3 {[%clk 0:00:47.8]} 27... Qxb3 {[%clk 0:01:20.4]} 28. Nb5 {[%clk 0:00:33.9]} 28... Bb6 {[%clk 0:00:41.4]} 29. Be3 {[%clk 0:00:19.1]} 29... a6 {[%clk 0:00:27.3]} 30. a5 {[%clk 0:00:27.2]} 30... Qxb5 {[%clk 0:00:30.1]} 31. axb6 {[%clk 0:00:30.1]} 31... Qxb6 {[%clk 0:00:39.7]} 32. Qc3 {[%clk 0:00:27.8]} 32... Qb1+ {[%clk 0:00:46.5]} 33. Qe1 {[%clk 0:00:29.5]} 33... Qb5 {[%clk 0:00:39.2]} 34. Qc3 {[%clk 0:00:26.1]} 34... Qb1+ {[%clk 0:00:45.6]} 35. Qe1 {[%clk 0:00:34]} 35... Qb2 {[%clk 0:00:54.6]} 36. Rc1 {[%clk 0:00:27.8]} 36... b6 {[%clk 0:01:01.1]} 37. Bd2 {[%clk 0:00:22.9]} 37... Qd4+ {[%clk 0:01:04.6]} 38. Be3 {[%clk 0:00:26.3]} 38... Qc4 {[%clk 0:01:11.1]} 39. Bd2 {[%clk 0:00:27.4]} 39... a5 {[%clk 0:01:19.6]} 40. Qe5 {[%clk 0:00:18]} 40... a4 {[%clk 0:01:15]} 41. Bc3 {[%clk 0:00:25.5]} 41... Qf7 {[%clk 0:00:24.7]} 42. Qe1 {[%clk 0:00:17.2]} 42... Qf5 {[%clk 0:00:25.6]} 43. Qe5 {[%clk 0:00:17]} 43... Qf2+ {[%clk 0:00:33.2]} 44. Kh1 {[%clk 0:00:21.3]} 44... Qf1+ {[%clk 0:00:41]} 45. Rxf1 {[%clk 0:00:25.7]} 45... Rxf1+ {[%clk 0:00:49.9]} 46. Kg2 {[%clk 0:00:29.3]} 46... Rf7 {[%clk 0:00:21.9]} 47. Bd2 {[%clk 0:00:23]} 47... a3 {[%clk 0:00:29.9]} 48. Qe8+ {[%clk 0:00:27.2]} 48... Rf8 {[%clk 0:00:35]} 49. Qa4 {[%clk 0:00:34.1]} 49... Rd8 {[%clk 0:00:29.5]} 50. Qxc2 {[%clk 0:00:33.5]} 50... Ra8 {[%clk 0:00:33.9]} 51. Bc3 {[%clk 0:00:33.3]} 51... b5 {[%clk 0:00:41.6]} 52. Ba1 {[%clk 0:00:41.6]} 52... c4 {[%clk 0:00:48.2]} 53. Qc3 {[%clk 0:00:47.4]} 53... Ra7 {[%clk 0:00:35]} 54. Qb4 {[%clk 0:00:48.5]} 54... c3 {[%clk 0:00:18.3]} 55. Qxc3 {[%clk 0:00:55.5]} 55... a2 {[%clk 0:00:24.5]} 56. Qb3+ {[%clk 0:00:51.7]} 56... Kf8 {[%clk 0:00:29.3]} 57. Qxb5 {[%clk 0:00:57.8]} 57... g6 {[%clk 0:00:38.9]} 58. Qc5+ {[%clk 0:01:00.2]} 58... Re7 {[%clk 0:00:46.6]} 59. Qc8+ {[%clk 0:00:49.3]} 59... Kf7 {[%clk 0:00:53.7]} 60. Qc4+ {[%clk 0:00:54.8]} 60... Ke8 {[%clk 0:00:53.4]} 61. Qxa2 {[%clk 0:00:59.8]} 1-0